fUST/lending_fUST_20250916
["ID","MTS","AMOUNT","RATE_DAILY","PERIOD"]
[385720198,1757989847026,-455.08,0.0002226,3]
[385720200,1757989847036,-322.85,0.0002226,3]
[385720202,1757989847045,-480.0,0.0002226,3]
[385720204,1757989847054,-581.34,0.0002226,3]
[385720206,1757989847063,-557.68263641,0.0002226,3]
[385720208,1757989847072,-256.22,0.0002226,3]
[385720210,1757989847082,-480.0,0.0002226,3]
[385720212,1757989847091,-555.02,0.0002226,3]
[385720214,1757989847100,-480.0,0.0002226,3]
[385720216,1757989847110,-304.54,0.0002226,3]
[385720218,1757989847121,-254.43,0.0002226,3]
[385720220,1757989847130,-480.0,0.0002226,3]
[385720222,1757989847140,-480.0,0.0002226,3]
[385720224,1757989847149,-480.0,0.0002226,3]
[385720226,1757989847158,-216.0,0.0002226,3]
[385720228,1757989847167,-272.02,0.0002226,3]
[385720230,1757989847176,-480.0,0.0002226,3]
[385720232,1757989847186,-480.0,0.0002226,3]
[385720234,1757989847195,-588.69,0.0002226,3]
[385720236,1757989847204,-480.0,0.0002226,3]
[385720238,1757989847213,-459.96,0.0002226,3]
[385720240,1757989847222,-181.02,0.0002226,3]
[385720242,1757989847233,-480.0,0.0002226,3]
[385720243,1757989847242,-245.16,0.0002226,3]
[385720246,1757989847251,-215.54,0.00022261,3]
[385720248,1757989847261,-239.69,0.00022261,3]
[385720249,1757989847270,-507.01,0.00022261,3]
[385720252,1757989847280,-480.0,0.00022262,3]
[385720254,1757989847289,-169.79,0.00022262,3]
[385720256,1757989847299,-467.61821823,0.00022262,3]
[385720258,1757989847308,-269.45,0.00022262,3]
[385720260,1757989847317,-220.43,0.00022262,3]
[385720262,1757989847326,-465.36991388,0.00022262,3]
[385720264,1757989847335,-468.44766671,0.00022262,3]
[385720266,1757989847343,-310.29,0.00022262,3]
[385720268,1757989847352,-174.3445449,0.00022262,3]
[385720270,1757989847361,-476.85677227,0.00022262,3]
[385720272,1757989847371,-1294.88,0.00022262,3]
[385720274,1757989847380,-472.50669753,0.00022262,3]
[385720276,1757989847389,-443.63141603,0.00022262,3]
[385720278,1757989847398,-464.7086636,0.00022262,3]
[385720280,1757989847407,-480.0,0.00022262,3]
[385720282,1757989847417,-482.46802352,0.00022262,3]
[385720284,1757989847426,-573.19702569,0.00022262,3]
[385720286,1757989847435,-467.46242403,0.00022262,3]
[385720288,1757989847444,-480.0,0.00022262,3]
[385720290,1757989847454,-480.0,0.00022262,3]
[385720292,1757989847463,-472.13290087,0.00022262,3]
[385720294,1757989847472,-474.39629858,0.00022262,3]
[385720296,1757989847481,-349.11,0.00022262,3]
[385720298,1757989847491,-1528.9,0.00022262,3]
[385720300,1757989847500,-480.0,0.00022262,3]
[385720302,1757989847510,-480.0,0.00022262,3]
[385720304,1757989847519,-480.0,0.00022262,3]
[385720306,1757989847528,-500.0,0.00022273,2]
[385720308,1757989847538,-502.12372368,0.00022273,2]
[385720310,1757989847548,-500.0,0.00022273,2]
[385720312,1757989847557,-500.21332873,0.00022273,2]
[385720314,1757989847567,-300.0,0.00022273,2]
[385720316,1757989847575,-500.0,0.00022273,2]
[385720318,1757989847584,-1174.24567615,0.00022297,2]
[385720320,1757989847595,-150.81,0.00022367,3]
[385720322,1757989847604,-1174.24567615,0.00022433,2]
[385720324,1757989847613,-1000.0,0.00022521,2]
[385720326,1757989847623,-1000.0,0.00022521,2]
[385720328,1757989847632,-1000.0,0.00022521,2]
[385720330,1757989847641,-1000.0,0.00022521,2]
[385720332,1757989847650,-1000.0,0.00022521,2]
[385720334,1757989847659,-1000.0,0.00022521,2]
[385720336,1757989847668,-1000.0,0.00022521,2]
[385720338,1757989847677,-56.82729179,0.00022532,3]
[385722207,1757989976719,5000.0,0.00019178,2]
[385722208,1757990158570,201.47925401,0.000199,2]
[385722209,1757990174596,192.1962158,0.00027726,30]
[385722210,1757990202313,368.680674,0.00020447,2]
[385722211,1757990219660,311.229708,0.00020359,2]
[385722212,1757990219989,247.26277602,0.0002036,2]
[385722214,1757990280436,196.51,0.00017982,7]
[385722215,1757990280727,196.51,0.00017982,7]
[385722216,1757990281152,196.51,0.00017982,7]
[385722217,1757990559564,1042.3170946,0.00019989,2]
[385722218,1757990566618,308.5524636,0.00019988,2]
[385722219,1757990714285,312.73,0.000206,2]
[385722221,1757990846112,-212.9572172,0.00020907,2]
[385722222,1757990846133,-300.0,0.00020972,2]
[385722223,1757990846153,-300.0,0.00020972,2]
[385722224,1757990846173,-163.04920341,0.00020972,2]
[385722225,1757990931000,181.04202326,0.00028,30]
[385722226,1757990996319,164.36,0.00028,30]
[385722267,1757991032549,-500.0,0.00020972,2]
[385722269,1757991032602,-700.0,0.00020972,2]
[385722270,1757991032611,-300.0,0.00020972,2]
[385722271,1757991032627,-1200.0,0.00020972,2]
[385722272,1757991032637,-500.0,0.00020973,2]
[385722273,1757991032649,-500.0,0.00020973,2]
[385722274,1757991032661,-500.0,0.00020973,2]
[385722275,1757991032670,-500.0,0.00020973,2]
[385722276,1757991032680,-364.95903581,0.00020973,2]
[385722278,1757991032689,-502.11077224,0.00020973,2]
[385722280,1757991032698,-500.0,0.00020973,2]
[385722282,1757991032708,-500.0,0.00020973,2]
[385722283,1757991032717,-500.0,0.00020973,2]
[385722285,1757991032726,-500.0,0.00020973,2]
[385722286,1757991032735,-500.0,0.00020973,2]
[385722287,1757991032744,-500.0,0.00020973,2]
[385722288,1757991032753,-150.0,0.00020973,2]
[385722289,1757991032762,-14576.11390775,0.00020973,2]
[385722290,1757991032771,-500.0,0.00020973,2]
[385722291,1757991032780,-439.55,0.0002098,10]
[385722292,1757991032790,-500.0,0.00020984,2]
[385722293,1757991032799,-500.0,0.00020984,2]
[385722294,1757991032808,-500.0,0.00020984,2]
[385722295,1757991032818,-631.32672123,0.00020984,2]
[385722296,1757991032827,-207.38911832,0.00020984,2]
[385722297,1757991032836,-500.0,0.00020984,2]
[385722298,1757991032845,-500.0,0.00020984,2]
[385722299,1757991032855,-500.0,0.00020984,2]
[385722300,1757991032863,-527.49267035,0.00020984,2]
[385722301,1757991032873,-500.0,0.00020984,2]
[385722302,1757991032883,-500.0,0.00020984,2]
[385722303,1757991032892,-500.0,0.00020984,2]
[385722304,1757991032901,-500.0,0.00020984,2]
[385722305,1757991032911,-3.85763865,0.00020984,2]
[385722307,1757991038385,-496.14236135,0.00020984,2]
[385722308,1757991038395,-166.83822414,0.00020984,2]
[385722309,1757991038404,-500.0,0.00020984,2]
[385722310,1757991038414,-500.0,0.00020984,2]
[385722311,1757991038423,-500.0,0.00020984,2]
[385722312,1757991038432,-500.0,0.00020984,2]
[385722313,1757991038442,-500.0,0.00020984,2]
[385722314,1757991038451,-500.0,0.00020984,2]
[385722315,1757991038460,-500.0,0.00020984,2]
[385722316,1757991038469,-500.0,0.00020984,2]
[385722317,1757991038478,-500.0,0.00020984,2]
[385722318,1757991038487,-269.88643958,0.00020984,2]
[385722319,1757991038496,-500.0,0.00020988,2]
[385722320,1757991038505,-151.0,0.00020988,2]
[385722321,1757991038514,-151.0,0.00020988,2]
[385722322,1757991038523,-151.0,0.00020988,2]
[385722323,1757991038531,-151.0,0.00020988,2]
[385722324,1757991038545,-151.0,0.00020988,2]
[385722325,1757991038554,-151.0,0.00020988,2]
[385722326,1757991038564,-230.08351084,0.00020988,2]
[385722327,1757991038573,-275.99279662,0.00020988,2]
[385722328,1757991038582,-151.0,0.00020988,2]
[385722329,1757991038592,-151.0,0.00020988,2]
[385722330,1757991038603,-151.0,0.00020988,2]
[385722331,1757991038612,-500.0,0.00020988,2]
[385722332,1757991038621,-151.0,0.00020988,2]
[385722333,1757991038631,-157.5453358,0.00020988,2]
[385722334,1757991038643,-157.59747596,0.00020988,2]
[385722335,1757991038654,-500.0,0.00020988,2]
[385722336,1757991038663,-500.0,0.00020988,2]
[385722337,1757991038673,-151.0,0.00020988,2]
[385722338,1757991038682,-533.01390724,0.00020988,2]
[385722339,1757991038692,-1703.50854636,0.00020988,2]
[385722340,1757991038702,-1703.50854636,0.00020988,2]
[385722341,1757991038711,-1703.50854636,0.00020988,2]
[385722342,1757991038720,-264.74114124,0.00020988,2]
[385722343,1757991038729,-1703.50854636,0.00020988,2]
[385722344,1757991038739,-1703.50854636,0.00020988,2]
[385722345,1757991038750,-1703.50854636,0.00020988,2]
[385722346,1757991038760,-1703.50854636,0.00020988,2]
[385722347,1757991038770,-1703.50854636,0.00020988,2]
[385722348,1757991038780,-1703.50854636,0.00020988,2]
[385722349,1757991038790,-1703.50854636,0.00020988,2]
[385722350,1757991038800,-1703.50854636,0.00020988,2]
[385722351,1757991038809,-1703.50854636,0.00020988,2]
[385722352,1757991038819,-1703.50854636,0.00020988,2]
[385722353,1757991038828,-1703.50854636,0.00020988,2]
[385722354,1757991038837,-1703.50854636,0.00020988,2]
[385722355,1757991038846,-1703.50854636,0.00020988,2]
[385722356,1757991038857,-1703.50854636,0.00020988,2]
[385722357,1757991038867,-1703.50854636,0.00020988,2]
[385722358,1757991038876,-1724.80240317,0.00020988,2]
[385722359,1757991038886,-1724.80240317,0.00020988,2]
[385722360,1757991038896,-1724.80240317,0.00020988,2]
[385722361,1757991038908,-1724.80240317,0.00020988,2]
[385722362,1757991038917,-1724.80240317,0.00020988,2]
[385722363,1757991038927,-1724.80240317,0.00020988,2]
[385722364,1757991038935,-1724.80240317,0.00020988,2]
[385722365,1757991038944,-201.8514727,0.00020989,2]
[385722366,1757991038953,-151.0,0.00020989,2]
[385722367,1757991038962,-151.0,0.00020989,2]
[385722368,1757991038971,-151.0,0.00020989,2]
[385722369,1757991038980,-151.0,0.00020989,2]
[385722370,1757991038989,-151.0,0.00020989,2]
[385722371,1757991038998,-151.0,0.00020989,2]
[385722372,1757991039007,-151.0,0.00020989,2]
[385722373,1757991039016,-151.0,0.00020989,2]
[385722374,1757991039025,-151.0,0.00020989,2]
[385722375,1757991039034,-151.0,0.00020989,2]
[385722376,1757991039043,-151.0,0.00020989,2]
[385722377,1757991039052,-151.0,0.00020989,2]
[385722378,1757991039061,-151.0,0.00020989,2]
[385722379,1757991039071,-500.0,0.00020989,2]
[385722380,1757991039080,-100000.0,0.0002099,2]
[385722381,1757991039089,-300.0,0.0002111,2]
[385722382,1757991039098,-1607.77314669,0.00021163,2]
[385722383,1757991039107,-450.0,0.00021247,2]
[385722384,1757991039116,-500.0,0.00021262,2]
[385722385,1757991039126,-151.84647639,0.00021262,2]
[385722386,1757991039135,-151.0,0.00021262,2]
[385722387,1757991039144,-151.0,0.00021262,2]
[385722388,1757991039153,-151.0,0.00021262,2]
[385722389,1757991039162,-151.0,0.00021262,2]
[385722390,1757991039171,-188.47086464,0.00021262,2]
[385722391,1757991039180,-163.33034496,0.00021262,2]
[385722392,1757991039189,-151.85723374,0.00021262,2]
[385722393,1757991039199,-151.0,0.00021262,2]
[385722394,1757991039208,-506.97241117,0.00021262,2]
[385722395,1757991039218,-500.0,0.00021262,2]
[385722396,1757991039227,-500.0,0.00021262,2]
[385722397,1757991039236,-151.0,0.00021262,2]
[385722398,1757991039245,-159.74226301,0.00021263,2]
[385722399,1757991039254,-151.0,0.00021263,2]
[385722400,1757991039263,-151.0,0.00021263,2]
[385722401,1757991039272,-297.03601603,0.00021263,2]
[385722402,1757991039281,-151.0,0.00021263,2]
[385722403,1757991039291,-151.0,0.00021263,2]
[385722404,1757991039300,-151.0,0.00021263,2]
[385722405,1757991039309,-196.77125647,0.00021263,2]
[385722406,1757991039319,-164.55161231,0.00021263,2]
[385722407,1757991039328,-151.0,0.00021263,2]
[385722408,1757991039338,-151.0,0.00021263,2]
[385722409,1757991039347,-151.0,0.00021263,2]
[385722410,1757991039356,-151.0,0.00021263,2]
[385722411,1757991039365,-563.70424583,0.00021263,2]
[385722412,1757991039374,-1607.77314669,0.00021341,2]
[385722413,1757991039383,-3488.64595089,0.00021377,2]
[385722414,1757991039392,-600.0,0.00021384,2]
[385722415,1757991039401,-1607.77314669,0.00021518,2]
[385722416,1757991039410,-1000.0,0.00021521,2]
[385722417,1757991039419,-1000.0,0.00021521,2]
[385722418,1757991039428,-1000.0,0.00021521,2]
[385722419,1757991039437,-502.34057584,0.00021521,2]
[385722420,1757991039447,-1000.0,0.00021521,2]
[385722421,1757991039456,-1000.0,0.00021521,2]
[385722422,1757991039467,-1000.0,0.00021521,2]
[385722423,1757991039479,-500.21332873,0.00021521,2]
[385722424,1757991039489,-500.0,0.00021521,2]
[385722425,1757991039500,-219.55204424,0.00021521,2]
[385722426,1757991039510,-500.0,0.00021536,2]
[385722427,1757991039520,-165.01437502,0.00021536,2]
[385722428,1757991039529,-168.15323708,0.00021536,2]
[385722429,1757991039542,-152.5759938,0.00021536,2]
[385722430,1757991039551,-170.13619277,0.00021536,2]
[385722431,1757991039562,-153.25995394,0.00021536,2]
[385722432,1757991039571,-394.21450095,0.00021536,2]
[385722433,1757991039584,-317.31460948,0.00021536,2]
[385722434,1757991039593,-151.0,0.00021536,2]
[385722435,1757991039603,-249.61445996,0.00021537,2]
[385722436,1757991039615,-151.0,0.00021537,2]
[385722437,1757991039624,-151.0,0.00021537,2]
[385722438,1757991039634,-151.0,0.00021537,2]
[385722439,1757991039644,-151.0,0.00021537,2]
[385722440,1757991039653,-238.36251113,0.00021537,2]
[385722441,1757991039664,-151.0,0.00021537,2]
[385722442,1757991039676,-151.0,0.00021537,2]
[385722443,1757991039686,-151.0,0.00021537,2]
[385722444,1757991039695,-1607.77314669,0.00021696,2]
[385722445,1757991039704,-4064.11303969,0.000218,2]
[385722446,1757991039713,-500.0,0.0002181,2]
[385722447,1757991039723,-196.88819794,0.00021811,2]
[385722448,1757991039737,-151.0,0.00021811,2]
[385722449,1757991039746,-177.60664321,0.00021811,2]
[385722450,1757991039755,-151.0,0.00021811,2]
[385722451,1757991039765,-200.24827857,0.00021811,2]
[385722452,1757991039774,-199.77256121,0.00021811,2]
[385722453,1757991039783,-244.90816671,0.00021811,2]
[385722454,1757991039793,-273.0,0.00021816,2]
[385722455,1757991039803,-545.14607468,0.00021873,2]
[385722456,1757991039813,-1607.77314669,0.00021873,2]
[385722457,1757991039823,-370000.0,0.00021886,2]
[385722458,1757991039832,-812.13,0.000219,7]
[385722459,1757991039841,-187.81,0.000219,7]
[385722460,1757991039942,-187.81,0.000219,7]
[385722461,1757991039952,-187.81,0.000219,7]
[385722462,1757991039962,-1475.30222112,0.00021917,2]
[385722463,1757991039971,-480.0,0.00021917,2]
[385722464,1757991039981,-480.0,0.00021917,2]
[385722465,1757991039990,-480.0,0.00021917,2]
[385722466,1757991040000,-480.0,0.00021917,2]
[385722467,1757991040010,-480.0,0.00021917,2]
[385722468,1757991040019,-480.0,0.00021917,2]
[385722469,1757991040029,-480.0,0.00021917,2]
[385722470,1757991040038,-472.34677947,0.00021917,2]
[385722471,1757991040047,-480.0,0.00021917,2]
[385722472,1757991040056,-480.0,0.00021917,2]
[385722473,1757991040066,-472.05069032,0.00021917,2]
[385722474,1757991040076,-463.21920225,0.00021917,2]
[385722475,1757991040085,-480.0,0.00021917,2]
[385722476,1757991040095,-464.89829515,0.00021917,2]
[385722477,1757991040104,-480.0,0.00021917,2]
[385722478,1757991040114,-471.63088822,0.00021917,2]
[385722479,1757991040124,-407.04400014,0.00021917,2]
[385722480,1757991040135,-482.20539499,0.00021917,2]
[385722481,1757991040145,-480.0,0.00021917,2]
[385722482,1757991040156,-472.11574113,0.00021917,2]
[385722483,1757991040166,-480.0,0.00021917,2]
[385722484,1757991040175,-480.0,0.00021917,2]
[385722485,1757991040185,-452.10075269,0.00021917,2]
[385722486,1757991040194,-492.56,0.00021917,2]
[385722487,1757991040204,-480.0,0.00021917,2]
[385722488,1757991040213,-480.0,0.00021917,2]
[385722489,1757991040222,-480.0,0.00021917,2]
[385722490,1757991040232,-470.00049215,0.00021917,2]
[385722491,1757991040241,-462.09653045,0.00021917,2]
[385722492,1757991040250,-480.0,0.00021917,2]
[385722493,1757991040259,-467.08190753,0.00021917,2]
[385722494,1757991040268,-480.0,0.00021917,2]
[385722495,1757991040278,-462.78029667,0.00021917,2]
[385722496,1757991040288,-480.0,0.00021917,2]
[385722497,1757991040297,-480.0,0.00021917,2]
[385722498,1757991040306,-480.0,0.00021917,2]
[385722499,1757991040315,-480.0,0.00021917,2]
[385722500,1757991040324,-480.0,0.00021917,2]
[385722501,1757991040333,-469.24373776,0.00021917,2]
[385722502,1757991040343,-470.11623041,0.00021917,2]
[385722503,1757991040351,-480.0,0.00021917,2]
[385722504,1757991040361,-586.90471744,0.00021917,2]
[385722505,1757991040370,-480.0,0.00021917,2]
[385722506,1757991040379,-589.37,0.00021917,2]
[385722507,1757991040388,-558.53,0.00021917,2]
[385722508,1757991040397,-480.0,0.00021917,2]
[385722509,1757991040407,-432.86391495,0.00021917,2]
[385722510,1757991040416,-480.0,0.00021917,2]
[385722511,1757991040425,-480.0,0.00021917,2]
[385722512,1757991040434,-469.90889622,0.00021917,2]
[385722513,1757991040443,-480.0,0.00021917,2]
[385722514,1757991040452,-324.1074478,0.00021917,2]
[385722515,1757991040461,-484.68297499,0.00021917,2]
[385722516,1757991040470,-1371.98,0.00021917,2]
[385722517,1757991040480,-480.0,0.00021917,2]
[385722518,1757991040490,-480.0,0.00021917,2]
[385722519,1757991040499,-480.0,0.00021917,2]
[385722520,1757991040508,-480.0,0.00021917,2]
[385722521,1757991040517,-480.0,0.00021917,2]
[385722522,1757991040526,-480.0,0.00021917,2]
[385722523,1757991040537,-480.0,0.00021917,2]
[385722524,1757991040546,-480.0,0.00021917,2]
[385722525,1757991040556,-480.0,0.00021917,2]
[385722526,1757991040566,-467.46905621,0.00021917,2]
[385722527,1757991040578,-480.0,0.00021917,2]
[385722528,1757991040587,-464.48698324,0.00021917,2]
[385722529,1757991040596,-737.98,0.00021917,2]
[385722530,1757991040605,-465.15456973,0.00021917,2]
[385722531,1757991040615,-480.0,0.00021917,2]
[385722532,1757991040625,-480.0,0.00021917,2]
[385722533,1757991040634,-480.0,0.00021917,2]
[385722534,1757991040643,-480.0,0.00021917,2]
[385722535,1757991040655,-480.0,0.00021917,2]
[385722536,1757991040669,-434.41094054,0.00021917,2]
[385722537,1757991040679,-480.0,0.00021917,2]
[385722538,1757991040688,-480.0,0.00021917,2]
[385722539,1757991040697,-480.0,0.00021917,2]
[385722540,1757991040706,-650.34,0.00021917,2]
[385722541,1757991040718,-480.0,0.00021917,2]
[385722542,1757991040729,-561.08,0.00021917,2]
[385722543,1757991040739,-480.0,0.00021917,2]
[385722544,1757991040748,-480.0,0.00021917,2]
[385722545,1757991040759,-480.0,0.00021917,2]
[385722546,1757991040768,-480.0,0.00021917,2]
[385722547,1757991040778,-471.64633302,0.00021917,2]
[385722548,1757991040787,-464.12774049,0.00021917,2]
[385722549,1757991040798,-500.0,0.00021917,2]
[385722550,1757991040808,-243.18922283,0.00021917,2]
[385722551,1757991040819,-480.0,0.00021917,2]
[385722552,1757991040828,-480.0,0.00021917,2]
[385722553,1757991040837,-480.0,0.00021917,2]
[385722554,1757991040846,-480.0,0.00021917,2]
[385722555,1757991040855,-480.0,0.00021917,2]
[385722556,1757991040864,-480.0,0.00021917,2]
[385722557,1757991040874,-480.0,0.00021917,2]
[385722558,1757991040883,-477.92165499,0.00021917,2]
[385722559,1757991040892,-480.0,0.00021917,2]
[385722560,1757991040904,-480.0,0.00021917,2]
[385722561,1757991040915,-480.0,0.00021917,2]
[385722562,1757991040926,-480.0,0.00021917,2]
[385722563,1757991040936,-480.0,0.00021917,2]
[385722564,1757991040946,-480.0,0.00021917,2]
[385722565,1757991040956,-480.0,0.00021917,2]
[385722566,1757991040967,-490.23,0.00021917,2]
[385722567,1757991040978,-480.0,0.00021917,2]
[385722568,1757991040988,-480.0,0.00021917,2]
[385722569,1757991040998,-462.68099676,0.00021917,2]
[385722570,1757991041007,-480.0,0.00021917,2]
[385722571,1757991041017,-462.29956393,0.00021917,2]
[385722572,1757991041025,-480.0,0.00021917,2]
[385722573,1757991041035,-464.59230258,0.00021917,2]
[385722574,1757991041043,-480.0,0.00021917,2]
[385722575,1757991041052,-460.6560228,0.00021917,2]
[385722576,1757991041062,-480.0,0.00021917,2]
[385722577,1757991041071,-466.70728336,0.00021917,2]
[385722578,1757991041080,-480.0,0.00021917,2]
[385722579,1757991041088,-480.0,0.00021917,2]
[385722580,1757991041097,-480.0,0.00021917,2]
[385722581,1757991041106,-480.0,0.00021917,2]
[385722582,1757991041115,-480.0,0.00021917,2]
[385722583,1757991041124,-480.0,0.00021917,2]
[385722584,1757991041134,-480.0,0.00021917,2]
[385722585,1757991041143,-469.82005669,0.00021917,2]
[385722586,1757991041152,-480.0,0.00021917,2]
[385722587,1757991041161,-462.51137773,0.00021917,2]
[385722588,1757991041171,-480.0,0.00021917,2]
[385722589,1757991041180,-480.0,0.00021917,2]
[385722590,1757991041189,-464.5531419,0.00021917,2]
[385722591,1757991041198,-480.0,0.00021917,2]
[385722592,1757991041208,-480.0,0.00021917,2]
[385722593,1757991041218,-469.91662688,0.00021917,2]
[385722594,1757991041227,-480.0,0.00021917,2]
[385722595,1757991041236,-795.64,0.00021917,2]
[385722596,1757991041246,-511.9,0.00021917,2]
[385722597,1757991041256,-480.0,0.00021917,2]
[385722598,1757991041265,-462.82756429,0.00021917,2]
[385722599,1757991041274,-482.61594293,0.00021917,2]
[385722600,1757991041283,-480.0,0.00021917,2]
[385722601,1757991041292,-480.0,0.00021917,2]
[385722602,1757991041302,-501.44,0.00021917,2]
[385722603,1757991041312,-465.41495787,0.00021917,2]
[385722604,1757991041322,-480.0,0.00021917,2]
[385722605,1757991041331,-480.0,0.00021917,2]
[385722606,1757991041339,-480.0,0.00021917,2]
[385722607,1757991041348,-480.0,0.00021917,2]
[385722608,1757991041357,-463.00955673,0.00021917,2]
[385722609,1757991041366,-480.0,0.00021917,2]
[385722610,1757991041375,-474.22941731,0.00021917,2]
[385722611,1757991041384,-480.0,0.00021917,2]
[385722612,1757991041394,-532.76158333,0.00021917,2]
[385722613,1757991041403,-465.59263825,0.00021917,2]
[385722614,1757991041412,-480.0,0.00021917,2]
[385722615,1757991041421,-480.0,0.00021917,2]
[385722616,1757991041430,-465.75296969,0.00021917,2]
[385722617,1757991041440,-464.12343361,0.00021917,2]
[385722618,1757991041450,-2079.07,0.00021917,2]
[385722619,1757991041460,-525.29,0.00021917,2]
[385722620,1757991041469,-371.44676225,0.00021917,2]
[385722621,1757991041480,-480.0,0.00021917,2]
[385722622,1757991041490,-466.34238129,0.00021917,2]
[385722623,1757991041501,-480.0,0.00021917,2]
[385722624,1757991041511,-480.0,0.00021917,2]
[385722625,1757991041520,-466.22347238,0.00021917,2]
[385722626,1757991041530,-462.52038613,0.00021917,2]
[385722627,1757991041545,-480.0,0.00021917,2]
[385722628,1757991041554,-480.0,0.00021917,2]
[385722629,1757991041565,-480.0,0.00021917,2]
[385722630,1757991041574,-463.07704881,0.00021917,2]
[385722631,1757991041585,-480.0,0.00021917,2]
[385722632,1757991041594,-9311.89919646,0.0002195,2]
[385722633,1757991041604,-501.37024542,0.00021973,2]
[385722634,1757991041615,-631.12990426,0.00021973,2]
[385722635,1757991041625,-315.44323192,0.00021973,2]
[385722636,1757991041635,-500.81185211,0.00021973,2]
[385722637,1757991041644,-500.0,0.00021973,2]
[385722638,1757991041654,-502.8054162,0.00021973,2]
[385722639,1757991041663,-500.0,0.00021973,2]
[385722640,1757991041675,-366.93332035,0.00021973,2]
[385722641,1757991041686,-503.82371144,0.00021973,2]
[385722642,1757991041696,-502.83507393,0.00021973,2]
[385722643,1757991041707,-500.0,0.00021973,2]
[385722644,1757991041716,-578.93201716,0.00021973,2]
[385722645,1757991041726,-500.0,0.00021973,2]
[385722646,1757991041735,-500.0,0.00021973,2]
[385722647,1757991041744,-500.68439844,0.00021973,2]
[385722648,1757991041753,-501.94313271,0.00021973,2]
[385722649,1757991041762,-500.0,0.00021973,2]
[385722650,1757991041771,-500.0,0.00021973,2]
[385722651,1757991041780,-500.0,0.00021973,2]
[385722652,1757991041788,-501.13961535,0.00021973,2]
[385722653,1757991041797,-503.16502255,0.00021973,2]
[385722654,1757991041806,-501.51113363,0.00021973,2]
[385722655,1757991041816,-500.76270565,0.00021973,2]
[385722656,1757991041825,-500.0,0.00021973,2]
[385722657,1757991041834,-500.0,0.00021973,2]
[385722658,1757991041844,-500.0,0.00021973,2]
[385722659,1757991041854,-500.0,0.00021973,2]
[385722660,1757991041863,-500.0,0.00021973,2]
[385722661,1757991041872,-500.0,0.00021973,2]
[385722662,1757991041881,-501.04196088,0.00021973,2]
[385722663,1757991041891,-500.0,0.00021973,2]
[385722664,1757991041900,-293.67466398,0.00021973,2]
[385722665,1757991041909,-501.98150874,0.00021973,2]
[385722666,1757991041918,-500.0,0.00021973,2]
[385722667,1757991041928,-500.0,0.00021973,2]
[385722668,1757991041936,-500.0,0.00021973,2]
[385722669,1757991041946,-480.0,0.00021983,3]
[385722670,1757991041955,-482.54861047,0.00021983,3]
[385722671,1757991041964,-480.0,0.00021983,3]
[385722672,1757991041973,-481.61128168,0.00021983,3]
[385722673,1757991041982,-480.0,0.00021983,3]
[385722674,1757991041992,-492.70515079,0.00021983,3]
[385722675,1757991042001,-483.1320794,0.00021983,3]
[385722676,1757991042010,-480.0,0.00021983,3]
[385722677,1757991042019,-578.42382827,0.00021983,3]
[385722678,1757991042028,-480.0,0.00021983,3]
[385722679,1757991042038,-480.0,0.00021983,3]
[385722680,1757991042047,-480.0,0.00021983,3]
[385722681,1757991042056,-480.0,0.00021983,3]
[385722682,1757991042066,-480.0,0.00021983,3]
[385722683,1757991042075,-488.54173839,0.00021983,3]